Workbook

Sheet Preparation
A1: Joint Preparation
A2: Reference | B2: WPS Example 1
A3: Single or Double Sided | B3: Single
A4: Cap Height | B4: 3 | C4: mm
A5: Left Bevel (Top) | B5: 30 | C5: ° | D5: =RADIANS(B5) -> 0.5235987756 | E5: radians
A6: Right Bevel (Top) | B6: 30 | C6: ° | D6: =RADIANS(B6) -> 0.5235987756 | E6: radians
A7: Left Bevel (Bottom) | B7: 35 | C7: ° | D7: =RADIANS(B7) -> 0.6108652382 | E7: radians
A8: Right Bevel (Bottom) | B8: 15 | C8: ° | D8: 0.2617993878 | E8: radians
A9: Thickness (Left) | B9: 30 | C9: mm
A10: Thickness (Right) | B10: 30 | C10: mm
A11: Ratio Side1:Side 2 | B11: 1 | C11: to | D11: 1 | E11: =B11/(B11+D11) -> 0.5
A12: Root Gap | B12: 4 | C12: mm
A13: Root Face | B13: 2 | C13: mm

Sheet RunSequence
A1: Side 1 (Top) | K1: Run Sequence | S1: Adjust
A2: Layer | B2: Beads | C2: Slots | D2: Pass Numbers
A3: =IF(B3>0,1,"") -> 1 | B3: =COUNTA(D3:R3)-COUNTIF(D3:R3,"~*") -> 1 | C3: =COUNTA(D3:R3) -> 1 | D3: 1
A4: =IF(B4>0,A3+1,"") -> 2 | B4: =COUNTA(D4:R4)-COUNTIF(D4:R4,"~*") -> 1 | C4: =COUNTA(D4:R4) -> 1 | D4: 2
A5: =IF(B5>0,A4+1,"") -> 3 | B5: 2 | C5: 2 | D5: 3 | E5: 4
B6: 0 | C6: 0
B7: 0 | C7: 0
B8: 0 | C8: 0
B9: 0 | C9: 0
B10: 0 | C10: 0
B11: 0 | C11: 0
B12: 0 | C12: 0
B13: 0 | C13: 0
B14: 0 | C14: 0
B15: 0 | C15: 0
B16: 0 | C16: 0
B17: 0 | C17: 0
B18: 0 | C18: 0
A19: =IF(B19>0,A18+1,"") ->  | B19: 0 | C19: 0
B20: 0 | C20: 0
B21: 0 | C21: 0
B22: 0 | C22: 0
A23: =MAX(COUNT(A3:A22),D23) -> 6 | B23: =SUM(B3:B22) -> 4 | C23: =SUM(C3:C22) -> 4 | D23: 6 | E23: Layers Minimum
A24: Side 2 (Bottom) | K24: Run Sequence | S24: Adjust
A25: Layer | B25: Beads
A26: =IF(B26>0,1,"") ->  | B26: =COUNTA(D26:R26)-COUNTIF(D26:R26,"~*") -> 0 | C26: =COUNTA(D26:R26) -> 0
A27: =IF(B27>0,A26+1,"") ->  | B27: =COUNTA(D27:R27)-COUNTIF(D27:R27,"~*") -> 0 | C27: =COUNTA(D27:R27) -> 0
A28: =IF(B28>0,A27+1,"") ->  | B28: 0 | C28: 0
B29: 0 | C29: 0
B30: 0 | C30: 0
B31: 0 | C31: 0
B32: 0 | C32: 0
B33: 0 | C33: 0
B34: 0 | C34: 0
B35: 0 | C35: 0
B36: 0 | C36: 0
A37: =IF(B37>0,A36+1,"") ->  | B37: 0 | C37: 0
B38: 0 | C38: 0
B39: 0 | C39: 0
B40: 0 | C40: 0
B41: 0 | C41: 0
B42: 0 | C42: 0
B43: 0 | C43: 0
B44: 0 | C44: 0
B45: 0 | C45: 0
A46: =IF(SorD="Double",MAX(COUNT(A26:A45),D46),0) -> 0 | B46: =SUM(B26:B45) -> 0 | C46: =SUM(C26:C45) -> 0 | D46: 2 | E46: Layers Minimum

Sheet CropIt
A1: Image | B1: C:\Users\Kevin.Millican\Desktop\untitled.emf
A28: CropLeft | B28: 0 | E28: Adjustment | F28: 10
A29: CropRight | B29: 0
A30: CropTop | B30: 0
A31: CropBottom | B31: 0

Sheet About
A1: Original Spreadsheet and VBA macros ©2013 : Kevin Millican
A2: This spreadsheet and the macros contained therein is provided under the GNU General Public License, version 3 (GPL-3.0)
A3: It may be freely distributed and modified for both private and commercial use, provided the original author's work is acknowledged.
A4: For more details, see: | B4: http://opensource.org/licenses/GPL-3.0
A6: Usage:
A7: Use the Preparation sheet to set the initial weld geometry.
A8: Run numbers can be input on the RunSequence sheet, ordered by weld layer.
A9: To input stripper layers, and show them in the correct locations, use an asterisk (*) character
A10: Macros need to be enabled to show individual passes.
A11: Without macros, only the weld preparation and layers are displayed; ensure Workbook is saved while on the Preparation sheet if it is to be used this way.
A12: (otherwise existing passes will still be shown)
A14: Additional Information:
A15: Run sequence chart can be copied and pasted as a windows metafile to allow full scaling.
A16: Resulting image can be cropped using Office tools or in a standard drawing package.
A18: Change Log:
A19: Rev 0 - 10/10/2013 | B19: Initial release
A20: Rev 1 - 10/10/2013 | B20: Fixed division by zero error on 0° bevels
A21: Rev 2 - 15/10/2013 | B21: Improved scaling. Removed axes display as no longer required. Added About page and Change log.
A22: Rev 3 - 16/10/2013 | B22: Enabled use of characters ".","°","R","H","P","F","C", & "S"
A23: Rev 4 - 18/10/2013 | B23: Enabled use of characters "=" & "G". Improved character positioning. Added weld prep variables to sketch.
A24: Rev 5 - 19/10/2013 | B24: Rewrote routine to calculate font size. Added "," character for EU decimals (treated the same as ".").
A25: Rev 6 - 18/12/2013 | B25: Added external caps. Added save as EMF.
A26: Rev 7 - 18/08/2014 | B26: Added facility to crop images within the spreadsheet.
A27: Rev 8 - 19/08/2014 | B27: Added facility to flip Left-to-Right order of passes
A28: Rev 9 - 31/01/2019 | B28: Added minimum layers cell - improves appearance when filling out first few layers.

Sheet PlotData
A1: x | B1: y | C1: Comment
A2: 0 | B2: 0 | C2: Centre of Root | F2: Side 1 Layers (excl. Cap) | G2: =LayersS1-IF(Cap_Height>0,1,0) -> 5
F3: Side 2 Layers (excl. Cap) | G3: =LayersS2-IF(Cap_Height>0,1,0) -> -1
A4: =A2-Root_Gap/2 -> -2 | B4: 0 | C4: Left of root centre
A5: =A4 -> -2 | B5: =IF(SorD="Single",B4+Root_Face,B4+Root_Face/2) -> 2 | C5: Top of root face | D5: Gradient | F5: Height of Left Top | G5: =B7 -> 30
A6: =A5-(B6-B5)*TAN(Bevel1) -> -18.16580754 | B6: =IF(SorD="Single",Thickness,(Thickness-B4)*ratio) -> 30 | C6: Top of left bevel | D6: =(B6-B5)/IF(A6=A5,0.01,(A6-A5)) -> -1.732050808 | F6: Left Top Layer Height | G6: =G5/MAX(L1S,1) -> 6
A7: =MIN(A6,A23)-10 -> -28.16580754 | B7: =B6 -> 30 | C7: Top Left of Plate Side 1
A8: =A7 -> -28.16580754 | B8: =B6-Thickness -> 0 | C8: Bottom Left of Plate Side 1 | F8: Height of Left Bottom | G8: =ABS(B8) -> 0
F9: Left Bottom Layer Height | G9: =G8/MAX(L2S,1) -> 0
A10: =A4 -> -2 | B10: =B4 -> 0 | C10: Left of root face
A11: =A10 -> -2 | B11: =IF(SorD="Single",B4,B4-Root_Face/2) -> 0 | C11: Bottom of root face | D11: Gradient | F11: Height of Right Top | G11: =B18 -> 30
A12: =A11-(B11-B12)*TAN(Bevel3) -> -2 | B12: =B8 -> 0 | C12: Bottom of left bevel | D12: =(B12-B11)/IF(A12=A11,0.01,(A12-A11)) -> 0 | F12: Right Top Layer Height | G12: =G11/MAX(L1S,1) -> 6
A13: =A8 -> -28.16580754 | B13: =B8 -> 0 | C13: Bottom Left of Plate Side 1
F14: Height of Right Bottom | G14: =ABS(B19) -> 0
A15: =A2+Root_Gap/2 -> 2 | B15: 0 | C15: Right of root centre | F15: Right Bottom Layer Height | G15: =G14/MAX(L2S,1) -> 0
A16: =A15 -> 2 | B16: =IF(SorD="Single",B15+Root_Face,B15+Root_Face/2) -> 2 | C16: Top of root face | D16: Gradient
A17: =A16+(B17-B16)*TAN(Bevel2) -> 18.16580754 | B17: =IF(SorD="Single",Thickness2,(Thickness2-B4)*ratio) -> 30 | C17: Top of right bevel | D17: =(B17-B16)/IF(A17=A16,0.01,(A17-A16)) -> 1.732050808 | F17: Calculate Layer Height for Fonts
A18: =MAX(A17,A23)+10 -> 28.16580754 | B18: =B17 -> 30 | C18: Top Right of Plate Side 2 | G18: =IF(G6>0,G6,1000) -> 6
A19: =A18 -> 28.16580754 | B19: =B18-Thickness2 -> 0 | C19: BottomRight of Plate Side 2 | G19: =IF(G9>0,G9,1000) -> 1000
G20: =IF(G12>0,G12,1000) -> 6
A21: =A15 -> 2 | B21: =B15 -> 0 | C21: Right of root face | G21: =IF(G15>0,G15,1000) -> 1000
A22: =A21 -> 2 | B22: =IF(SorD="Single",B15,B15-Root_Face/2) -> 0 | C22: Bottom of root face | D22: Gradient | F22: Calculated Font Height | G22: =MIN(G18:G21) -> 6
A23: =A22+(B22-B23)*TAN(Bevel4) -> 2 | B23: =B19 -> 0 | C23: Bottom of right bevel | D23: =(B23-B22)/IF(A23=A22,0.01,(A23-A22)) -> 0 | F23: Minimum Plate Thickness | G23: =MIN(Thickness,Thickness2) -> 30
A24: =A19 -> 28.16580754 | B24: =B23 -> 0 | C24: Bottom Left of Plate Side 1 | F24: Maximum Font Height | G24: =G23/6 -> 5
A26: =MAX(-A8,A19,-B8,B7,-B19,B18)+1 -> 31 | B26: =A26 -> 31 | F26: Default Font Height | G26: =MIN(G22,G24,IF(Cap_Height>0,Cap_Height,1000)) -> 3
A27: =-A26 -> -31 | B27: =-B26 -> -31
C30: Start of run data
A31: =A4 -> -2 | B31: =B4 -> 0 | C31: Bottom left of first pass
A32: =A15 -> 2 | B32: =B15 -> 0 | C32: Bottom right of first pass
A34: =A6 -> -18.16580754 | B34: =B6 -> 30 | C34: Top of left bevel
A35: =A17 -> 18.16580754 | B35: =B17 -> 30 | C35: Top of right bevel
A37: =A12 -> -2 | B37: =B12 -> 0 | C37: Bottom of left bevel
A38: =A23 -> 2 | B38: =B23 -> 0 | C38: Bottom of right bevel
C39: =(ROW()-ROW(C$36))/3 -> 1
A40: =IF(L1S>=C39,(IF(B40>B$5,A$6-(L1S-C39)/L1S*B$6/Gradient1,A$5)),0) -> -4.309401077 | B40: =IF(L1S>=C39,C39*B$34/L1S,0) -> 6 | C40: =CONCATENATE("Layer ",C39," - left") -> Layer 1 - left
A41: =IF(L1S>=C39,(IF(B41>B$16,A$17-(L1S-C39)/L1S*B$17/Gradient3,A$16)),0) -> 4.309401077 | B41: =IF(L1S>=C39,C39*B$35/L1S,0) -> 6 | C41: =CONCATENATE("Layer ",C39," - right") -> Layer 1 - right
C42: =(ROW()-ROW(C$36))/3 -> 2
A43: =IF(L1S>=C42,(IF(B43>B$5,A$6-(L1S-C42)/L1S*B$6/Gradient1,A$5)),0) -> -7.773502692 | B43: =IF(L1S>=C42,C42*B$34/L1S,0) -> 12 | C43: =CONCATENATE("Layer ",C42," - left") -> Layer 2 - left
A44: =IF(L1S>=C42,(IF(B44>B$16,A$17-(L1S-C42)/L1S*B$17/Gradient3,A$16)),0) -> 7.773502692 | B44: =IF(L1S>=C42,C42*B$35/L1S,0) -> 12 | C44: =CONCATENATE("Layer ",C42," - right") -> Layer 2 - right
C45: =(ROW()-ROW(C$36))/3 -> 3
A46: =IF(L1S>=C45,(IF(B46>B$5,A$6-(L1S-C45)/L1S*B$6/Gradient1,A$5)),0) -> -11.23760431 | B46: =IF(L1S>=C45,C45*B$34/L1S,0) -> 18 | C46: =CONCATENATE("Layer ",C45," - left") -> Layer 3 - left
A47: =IF(L1S>=C45,(IF(B47>B$16,A$17-(L1S-C45)/L1S*B$17/Gradient3,A$16)),0) -> 11.23760431 | B47: =IF(L1S>=C45,C45*B$35/L1S,0) -> 18 | C47: =CONCATENATE("Layer ",C45," - right") -> Layer 3 - right
C48: =(ROW()-ROW(C$36))/3 -> 4
A49: =IF(L1S>=C48,(IF(B49>B$5,A$6-(L1S-C48)/L1S*B$6/Gradient1,A$5)),0) -> -14.70170592 | B49: =IF(L1S>=C48,C48*B$34/L1S,0) -> 24 | C49: =CONCATENATE("Layer ",C48," - left") -> Layer 4 - left
A50: =IF(L1S>=C48,(IF(B50>B$16,A$17-(L1S-C48)/L1S*B$17/Gradient3,A$16)),0) -> 14.70170592 | B50: =IF(L1S>=C48,C48*B$35/L1S,0) -> 24 | C50: =CONCATENATE("Layer ",C48," - right") -> Layer 4 - right
C51: =(ROW()-ROW(C$36))/3 -> 5
A52: =IF(L1S>=C51,(IF(B52>B$5,A$6-(L1S-C51)/L1S*B$6/Gradient1,A$5)),0) -> -18.16580754 | B52: =IF(L1S>=C51,C51*B$34/L1S,0) -> 30 | C52: =CONCATENATE("Layer ",C51," - left") -> Layer 5 - left
A53: =IF(L1S>=C51,(IF(B53>B$16,A$17-(L1S-C51)/L1S*B$17/Gradient3,A$16)),0) -> 18.16580754 | B53: =IF(L1S>=C51,C51*B$35/L1S,0) -> 30 | C53: =CONCATENATE("Layer ",C51," - right") -> Layer 5 - right
C54: =(ROW()-ROW(C$36))/3 -> 6
A55: =IF(L1S>=C54,(IF(B55>B$5,A$6-(L1S-C54)/L1S*B$6/Gradient1,A$5)),0) -> 0 | B55: =IF(L1S>=C54,C54*B$34/L1S,0) -> 0 | C55: =CONCATENATE("Layer ",C54," - left") -> Layer 6 - left
A56: =IF(L1S>=C54,(IF(B56>B$16,A$17-(L1S-C54)/L1S*B$17/Gradient3,A$16)),0) -> 0 | B56: =IF(L1S>=C54,C54*B$35/L1S,0) -> 0 | C56: =CONCATENATE("Layer ",C54," - right") -> Layer 6 - right
C57: =(ROW()-ROW(C$36))/3 -> 7
A58: =IF(L1S>=C57,(IF(B58>B$5,A$6-(L1S-C57)/L1S*B$6/Gradient1,A$5)),0) -> 0 | B58: =IF(L1S>=C57,C57*B$34/L1S,0) -> 0 | C58: =CONCATENATE("Layer ",C57," - left") -> Layer 7 - left
A59: =IF(L1S>=C57,(IF(B59>B$16,A$17-(L1S-C57)/L1S*B$17/Gradient3,A$16)),0) -> 0 | B59: =IF(L1S>=C57,C57*B$35/L1S,0) -> 0 | C59: =CONCATENATE("Layer ",C57," - right") -> Layer 7 - right
C60: =(ROW()-ROW(C$36))/3 -> 8
A61: =IF(L1S>=C60,(IF(B61>B$5,A$6-(L1S-C60)/L1S*B$6/Gradient1,A$5)),0) -> 0 | B61: =IF(L1S>=C60,C60*B$34/L1S,0) -> 0 | C61: =CONCATENATE("Layer ",C60," - left") -> Layer 8 - left
A62: =IF(L1S>=C60,(IF(B62>B$16,A$17-(L1S-C60)/L1S*B$17/Gradient3,A$16)),0) -> 0 | B62: =IF(L1S>=C60,C60*B$35/L1S,0) -> 0 | C62: =CONCATENATE("Layer ",C60," - right") -> Layer 8 - right
C63: =(ROW()-ROW(C$36))/3 -> 9
A64: =IF(L1S>=C63,(IF(B64>B$5,A$6-(L1S-C63)/L1S*B$6/Gradient1,A$5)),0) -> 0 | B64: =IF(L1S>=C63,C63*B$34/L1S,0) -> 0 | C64: =CONCATENATE("Layer ",C63," - left") -> Layer 9 - left
A65: =IF(L1S>=C63,(IF(B65>B$16,A$17-(L1S-C63)/L1S*B$17/Gradient3,A$16)),0) -> 0 | B65: =IF(L1S>=C63,C63*B$35/L1S,0) -> 0 | C65: =CONCATENATE("Layer ",C63," - right") -> Layer 9 - right
C66: =(ROW()-ROW(C$36))/3 -> 10
A67: =IF(L1S>=C66,(IF(B67>B$5,A$6-(L1S-C66)/L1S*B$6/Gradient1,A$5)),0) -> 0 | B67: =IF(L1S>=C66,C66*B$34/L1S,0) -> 0 | C67: =CONCATENATE("Layer ",C66," - left") -> Layer 10 - left
A68: =IF(L1S>=C66,(IF(B68>B$16,A$17-(L1S-C66)/L1S*B$17/Gradient3,A$16)),0) -> 0 | B68: =IF(L1S>=C66,C66*B$35/L1S,0) -> 0 | C68: =CONCATENATE("Layer ",C66," - right") -> Layer 10 - right
C69: =(ROW()-ROW(C$36))/3 -> 11
A70: =IF(L1S>=C69,(IF(B70>B$5,A$6-(L1S-C69)/L1S*B$6/Gradient1,A$5)),0) -> 0 | B70: =IF(L1S>=C69,C69*B$34/L1S,0) -> 0 | C70: =CONCATENATE("Layer ",C69," - left") -> Layer 11 - left
A71: =IF(L1S>=C69,(IF(B71>B$16,A$17-(L1S-C69)/L1S*B$17/Gradient3,A$16)),0) -> 0 | B71: =IF(L1S>=C69,C69*B$35/L1S,0) -> 0 | C71: =CONCATENATE("Layer ",C69," - right") -> Layer 11 - right
C72: =(ROW()-ROW(C$36))/3 -> 12
A73: =IF(L1S>=C72,(IF(B73>B$5,A$6-(L1S-C72)/L1S*B$6/Gradient1,A$5)),0) -> 0 | B73: =IF(L1S>=C72,C72*B$34/L1S,0) -> 0 | C73: =CONCATENATE("Layer ",C72," - left") -> Layer 12 - left
A74: =IF(L1S>=C72,(IF(B74>B$16,A$17-(L1S-C72)/L1S*B$17/Gradient3,A$16)),0) -> 0 | B74: =IF(L1S>=C72,C72*B$35/L1S,0) -> 0 | C74: =CONCATENATE("Layer ",C72," - right") -> Layer 12 - right
C75: =(ROW()-ROW(C$36))/3 -> 13
A76: =IF(L1S>=C75,(IF(B76>B$5,A$6-(L1S-C75)/L1S*B$6/Gradient1,A$5)),0) -> 0 | B76: =IF(L1S>=C75,C75*B$34/L1S,0) -> 0 | C76: =CONCATENATE("Layer ",C75," - left") -> Layer 13 - left
A77: =IF(L1S>=C75,(IF(B77>B$16,A$17-(L1S-C75)/L1S*B$17/Gradient3,A$16)),0) -> 0 | B77: =IF(L1S>=C75,C75*B$35/L1S,0) -> 0 | C77: =CONCATENATE("Layer ",C75," - right") -> Layer 13 - right
C78: =(ROW()-ROW(C$36))/3 -> 14
A79: =IF(L1S>=C78,(IF(B79>B$5,A$6-(L1S-C78)/L1S*B$6/Gradient1,A$5)),0) -> 0 | B79: =IF(L1S>=C78,C78*B$34/L1S,0) -> 0 | C79: =CONCATENATE("Layer ",C78," - left") -> Layer 14 - left
A80: =IF(L1S>=C78,(IF(B80>B$16,A$17-(L1S-C78)/L1S*B$17/Gradient3,A$16)),0) -> 0 | B80: =IF(L1S>=C78,C78*B$35/L1S,0) -> 0 | C80: =CONCATENATE("Layer ",C78," - right") -> Layer 14 - right
C81: =(ROW()-ROW(C$36))/3 -> 15
A82: =IF(L1S>=C81,(IF(B82>B$5,A$6-(L1S-C81)/L1S*B$6/Gradient1,A$5)),0) -> 0 | B82: =IF(L1S>=C81,C81*B$34/L1S,0) -> 0 | C82: =CONCATENATE("Layer ",C81," - left") -> Layer 15 - left
A83: =IF(L1S>=C81,(IF(B83>B$16,A$17-(L1S-C81)/L1S*B$17/Gradient3,A$16)),0) -> 0 | B83: =IF(L1S>=C81,C81*B$35/L1S,0) -> 0 | C83: =CONCATENATE("Layer ",C81," - right") -> Layer 15 - right
C84: =(ROW()-ROW(C$36))/3 -> 16
A85: =IF(L1S>=C84,(IF(B85>B$5,A$6-(L1S-C84)/L1S*B$6/Gradient1,A$5)),0) -> 0 | B85: =IF(L1S>=C84,C84*B$34/L1S,0) -> 0 | C85: =CONCATENATE("Layer ",C84," - left") -> Layer 16 - left
A86: =IF(L1S>=C84,(IF(B86>B$16,A$17-(L1S-C84)/L1S*B$17/Gradient3,A$16)),0) -> 0 | B86: =IF(L1S>=C84,C84*B$35/L1S,0) -> 0 | C86: =CONCATENATE("Layer ",C84," - right") -> Layer 16 - right
C87: =(ROW()-ROW(C$36))/3 -> 17
A88: =IF(L1S>=C87,(IF(B88>B$5,A$6-(L1S-C87)/L1S*B$6/Gradient1,A$5)),0) -> 0 | B88: =IF(L1S>=C87,C87*B$34/L1S,0) -> 0 | C88: =CONCATENATE("Layer ",C87," - left") -> Layer 17 - left
A89: =IF(L1S>=C87,(IF(B89>B$16,A$17-(L1S-C87)/L1S*B$17/Gradient3,A$16)),0) -> 0 | B89: =IF(L1S>=C87,C87*B$35/L1S,0) -> 0 | C89: =CONCATENATE("Layer ",C87," - right") -> Layer 17 - right
C90: =(ROW()-ROW(C$36))/3 -> 18
A91: =IF(L1S>=C90,(IF(B91>B$5,A$6-(L1S-C90)/L1S*B$6/Gradient1,A$5)),0) -> 0 | B91: =IF(L1S>=C90,C90*B$34/L1S,0) -> 0 | C91: =CONCATENATE("Layer ",C90," - left") -> Layer 18 - left
A92: =IF(L1S>=C90,(IF(B92>B$16,A$17-(L1S-C90)/L1S*B$17/Gradient3,A$16)),0) -> 0 | B92: =IF(L1S>=C90,C90*B$35/L1S,0) -> 0 | C92: =CONCATENATE("Layer ",C90," - right") -> Layer 18 - right
C93: =(ROW()-ROW(C$36))/3 -> 19
A94: =IF(L1S>=C93,(IF(B94>B$5,A$6-(L1S-C93)/L1S*B$6/Gradient1,A$5)),0) -> 0 | B94: =IF(L1S>=C93,C93*B$34/L1S,0) -> 0 | C94: =CONCATENATE("Layer ",C93," - left") -> Layer 19 - left
A95: =IF(L1S>=C93,(IF(B95>B$16,A$17-(L1S-C93)/L1S*B$17/Gradient3,A$16)),0) -> 0 | B95: =IF(L1S>=C93,C93*B$35/L1S,0) -> 0 | C95: =CONCATENATE("Layer ",C93," - right") -> Layer 19 - right
C96: =(ROW()-ROW(C$36))/3 -> 20
A97: =IF(L1S>=C96,(IF(B97>B$5,A$6-(L1S-C96)/L1S*B$6/Gradient1,A$5)),0) -> 0 | B97: =IF(L1S>=C96,C96*B$34/L1S,0) -> 0 | C97: =CONCATENATE("Layer ",C96," - left") -> Layer 20 - left
A98: =IF(L1S>=C96,(IF(B98>B$16,A$17-(L1S-C96)/L1S*B$17/Gradient3,A$16)),0) -> 0 | B98: =IF(L1S>=C96,C96*B$35/L1S,0) -> 0 | C98: =CONCATENATE("Layer ",C96," - right") -> Layer 20 - right
A100: 0 | C100: Side 2
C102: =(ROW()-ROW(C$99))/3 -> 1
A103: =IF(L2S>=C102,(IF(B103<B$11,A$12-(L2S-C102)/L2S*B$12/Gradient2,A$11)),0) -> 0 | B103: =IF(L2S>=C102,C102*B$37/L2S,0) -> 0 | C103: =CONCATENATE("S2 Layer ",C102," - left") -> S2 Layer 1 - left
A104: =IF(L2S>=C102,(IF(B104<B$22,A$23-(L2S-C102)/L2S*B$23/Gradient4,A$22)),0) -> 0 | B104: =IF(L2S>=C102,C102*B$38/L2S,0) -> 0 | C104: =CONCATENATE("S2 Layer ",C102," - right") -> S2 Layer 1 - right
C105: =(ROW()-ROW(C$99))/3 -> 2
A106: =IF(L2S>=C105,(IF(B106<B$11,A$12-(L2S-C105)/L2S*B$12/Gradient2,A$11)),0) -> 0 | B106: =IF(L2S>=C105,C105*B$37/L2S,0) -> 0 | C106: =CONCATENATE("S2 Layer ",C105," - left") -> S2 Layer 2 - left
A107: =IF(L2S>=C105,(IF(B107<B$22,A$23-(L2S-C105)/L2S*B$23/Gradient4,A$22)),0) -> 0 | B107: =IF(L2S>=C105,C105*B$38/L2S,0) -> 0 | C107: =CONCATENATE("S2 Layer ",C105," - right") -> S2 Layer 2 - right
C108: =(ROW()-ROW(C$99))/3 -> 3
A109: =IF(L2S>=C108,(IF(B109<B$11,A$12-(L2S-C108)/L2S*B$12/Gradient2,A$11)),0) -> 0 | B109: =IF(L2S>=C108,C108*B$37/L2S,0) -> 0 | C109: =CONCATENATE("S2 Layer ",C108," - left") -> S2 Layer 3 - left
A110: =IF(L2S>=C108,(IF(B110<B$22,A$23-(L2S-C108)/L2S*B$23/Gradient4,A$22)),0) -> 0 | B110: =IF(L2S>=C108,C108*B$38/L2S,0) -> 0 | C110: =CONCATENATE("S2 Layer ",C108," - right") -> S2 Layer 3 - right
C111: =(ROW()-ROW(C$99))/3 -> 4
A112: =IF(L2S>=C111,(IF(B112<B$11,A$12-(L2S-C111)/L2S*B$12/Gradient2,A$11)),0) -> 0 | B112: =IF(L2S>=C111,C111*B$37/L2S,0) -> 0 | C112: =CONCATENATE("S2 Layer ",C111," - left") -> S2 Layer 4 - left
A113: =IF(L2S>=C111,(IF(B113<B$22,A$23-(L2S-C111)/L2S*B$23/Gradient4,A$22)),0) -> 0 | B113: =IF(L2S>=C111,C111*B$38/L2S,0) -> 0 | C113: =CONCATENATE("S2 Layer ",C111," - right") -> S2 Layer 4 - right
C114: =(ROW()-ROW(C$99))/3 -> 5
A115: =IF(L2S>=C114,(IF(B115<B$11,A$12-(L2S-C114)/L2S*B$12/Gradient2,A$11)),0) -> 0 | B115: =IF(L2S>=C114,C114*B$37/L2S,0) -> 0 | C115: =CONCATENATE("S2 Layer ",C114," - left") -> S2 Layer 5 - left
A116: =IF(L2S>=C114,(IF(B116<B$22,A$23-(L2S-C114)/L2S*B$23/Gradient4,A$22)),0) -> 0 | B116: =IF(L2S>=C114,C114*B$38/L2S,0) -> 0 | C116: =CONCATENATE("S2 Layer ",C114," - right") -> S2 Layer 5 - right
C117: =(ROW()-ROW(C$99))/3 -> 6
A118: =IF(L2S>=C117,(IF(B118<B$11,A$12-(L2S-C117)/L2S*B$12/Gradient2,A$11)),0) -> 0 | B118: =IF(L2S>=C117,C117*B$37/L2S,0) -> 0 | C118: =CONCATENATE("S2 Layer ",C117," - left") -> S2 Layer 6 - left
A119: =IF(L2S>=C117,(IF(B119<B$22,A$23-(L2S-C117)/L2S*B$23/Gradient4,A$22)),0) -> 0 | B119: =IF(L2S>=C117,C117*B$38/L2S,0) -> 0 | C119: =CONCATENATE("S2 Layer ",C117," - right") -> S2 Layer 6 - right
C120: =(ROW()-ROW(C$99))/3 -> 7
A121: =IF(L2S>=C120,(IF(B121<B$11,A$12-(L2S-C120)/L2S*B$12/Gradient2,A$11)),0) -> 0 | B121: =IF(L2S>=C120,C120*B$37/L2S,0) -> 0 | C121: =CONCATENATE("S2 Layer ",C120," - left") -> S2 Layer 7 - left
A122: =IF(L2S>=C120,(IF(B122<B$22,A$23-(L2S-C120)/L2S*B$23/Gradient4,A$22)),0) -> 0 | B122: =IF(L2S>=C120,C120*B$38/L2S,0) -> 0 | C122: =CONCATENATE("S2 Layer ",C120," - right") -> S2 Layer 7 - right
C123: =(ROW()-ROW(C$99))/3 -> 8
A124: =IF(L2S>=C123,(IF(B124<B$11,A$12-(L2S-C123)/L2S*B$12/Gradient2,A$11)),0) -> 0 | B124: =IF(L2S>=C123,C123*B$37/L2S,0) -> 0 | C124: =CONCATENATE("S2 Layer ",C123," - left") -> S2 Layer 8 - left
A125: =IF(L2S>=C123,(IF(B125<B$22,A$23-(L2S-C123)/L2S*B$23/Gradient4,A$22)),0) -> 0 | B125: =IF(L2S>=C123,C123*B$38/L2S,0) -> 0 | C125: =CONCATENATE("S2 Layer ",C123," - right") -> S2 Layer 8 - right
C126: =(ROW()-ROW(C$99))/3 -> 9
A127: =IF(L2S>=C126,(IF(B127<B$11,A$12-(L2S-C126)/L2S*B$12/Gradient2,A$11)),0) -> 0 | B127: =IF(L2S>=C126,C126*B$37/L2S,0) -> 0 | C127: =CONCATENATE("S2 Layer ",C126," - left") -> S2 Layer 9 - left
A128: =IF(L2S>=C126,(IF(B128<B$22,A$23-(L2S-C126)/L2S*B$23/Gradient4,A$22)),0) -> 0 | B128: =IF(L2S>=C126,C126*B$38/L2S,0) -> 0 | C128: =CONCATENATE("S2 Layer ",C126," - right") -> S2 Layer 9 - right
C129: =(ROW()-ROW(C$99))/3 -> 10
A130: =IF(L2S>=C129,(IF(B130<B$11,A$12-(L2S-C129)/L2S*B$12/Gradient2,A$11)),0) -> 0 | B130: =IF(L2S>=C129,C129*B$37/L2S,0) -> 0 | C130: =CONCATENATE("S2 Layer ",C129," - left") -> S2 Layer 10 - left
A131: =IF(L2S>=C129,(IF(B131<B$22,A$23-(L2S-C129)/L2S*B$23/Gradient4,A$22)),0) -> 0 | B131: =IF(L2S>=C129,C129*B$38/L2S,0) -> 0 | C131: =CONCATENATE("S2 Layer ",C129," - right") -> S2 Layer 10 - right
C132: =(ROW()-ROW(C$99))/3 -> 11
A133: =IF(L2S>=C132,(IF(B133<B$11,A$12-(L2S-C132)/L2S*B$12/Gradient2,A$11)),0) -> 0 | B133: =IF(L2S>=C132,C132*B$37/L2S,0) -> 0 | C133: =CONCATENATE("S2 Layer ",C132," - left") -> S2 Layer 11 - left
A134: =IF(L2S>=C132,(IF(B134<B$22,A$23-(L2S-C132)/L2S*B$23/Gradient4,A$22)),0) -> 0 | B134: =IF(L2S>=C132,C132*B$38/L2S,0) -> 0 | C134: =CONCATENATE("S2 Layer ",C132," - right") -> S2 Layer 11 - right
C135: =(ROW()-ROW(C$99))/3 -> 12
A136: =IF(L2S>=C135,(IF(B136<B$11,A$12-(L2S-C135)/L2S*B$12/Gradient2,A$11)),0) -> 0 | B136: =IF(L2S>=C135,C135*B$37/L2S,0) -> 0 | C136: =CONCATENATE("S2 Layer ",C135," - left") -> S2 Layer 12 - left
A137: =IF(L2S>=C135,(IF(B137<B$22,A$23-(L2S-C135)/L2S*B$23/Gradient4,A$22)),0) -> 0 | B137: =IF(L2S>=C135,C135*B$38/L2S,0) -> 0 | C137: =CONCATENATE("S2 Layer ",C135," - right") -> S2 Layer 12 - right
C138: =(ROW()-ROW(C$99))/3 -> 13
A139: =IF(L2S>=C138,(IF(B139<B$11,A$12-(L2S-C138)/L2S*B$12/Gradient2,A$11)),0) -> 0 | B139: =IF(L2S>=C138,C138*B$37/L2S,0) -> 0 | C139: =CONCATENATE("S2 Layer ",C138," - left") -> S2 Layer 13 - left
A140: =IF(L2S>=C138,(IF(B140<B$22,A$23-(L2S-C138)/L2S*B$23/Gradient4,A$22)),0) -> 0 | B140: =IF(L2S>=C138,C138*B$38/L2S,0) -> 0 | C140: =CONCATENATE("S2 Layer ",C138," - right") -> S2 Layer 13 - right
C141: =(ROW()-ROW(C$99))/3 -> 14
A142: =IF(L2S>=C141,(IF(B142<B$11,A$12-(L2S-C141)/L2S*B$12/Gradient2,A$11)),0) -> 0 | B142: =IF(L2S>=C141,C141*B$37/L2S,0) -> 0 | C142: =CONCATENATE("S2 Layer ",C141," - left") -> S2 Layer 14 - left
A143: =IF(L2S>=C141,(IF(B143<B$22,A$23-(L2S-C141)/L2S*B$23/Gradient4,A$22)),0) -> 0 | B143: =IF(L2S>=C141,C141*B$38/L2S,0) -> 0 | C143: =CONCATENATE("S2 Layer ",C141," - right") -> S2 Layer 14 - right
C144: =(ROW()-ROW(C$99))/3 -> 15
A145: =IF(L2S>=C144,(IF(B145<B$11,A$12-(L2S-C144)/L2S*B$12/Gradient2,A$11)),0) -> 0 | B145: =IF(L2S>=C144,C144*B$37/L2S,0) -> 0 | C145: =CONCATENATE("S2 Layer ",C144," - left") -> S2 Layer 15 - left
A146: =IF(L2S>=C144,(IF(B146<B$22,A$23-(L2S-C144)/L2S*B$23/Gradient4,A$22)),0) -> 0 | B146: =IF(L2S>=C144,C144*B$38/L2S,0) -> 0 | C146: =CONCATENATE("S2 Layer ",C144," - right") -> S2 Layer 15 - right
C147: =(ROW()-ROW(C$99))/3 -> 16
A148: =IF(L2S>=C147,(IF(B148<B$11,A$12-(L2S-C147)/L2S*B$12/Gradient2,A$11)),0) -> 0 | B148: =IF(L2S>=C147,C147*B$37/L2S,0) -> 0 | C148: =CONCATENATE("S2 Layer ",C147," - left") -> S2 Layer 16 - left
A149: =IF(L2S>=C147,(IF(B149<B$22,A$23-(L2S-C147)/L2S*B$23/Gradient4,A$22)),0) -> 0 | B149: =IF(L2S>=C147,C147*B$38/L2S,0) -> 0 | C149: =CONCATENATE("S2 Layer ",C147," - right") -> S2 Layer 16 - right
C150: =(ROW()-ROW(C$99))/3 -> 17
A151: =IF(L2S>=C150,(IF(B151<B$11,A$12-(L2S-C150)/L2S*B$12/Gradient2,A$11)),0) -> 0 | B151: =IF(L2S>=C150,C150*B$37/L2S,0) -> 0 | C151: =CONCATENATE("S2 Layer ",C150," - left") -> S2 Layer 17 - left
A152: =IF(L2S>=C150,(IF(B152<B$22,A$23-(L2S-C150)/L2S*B$23/Gradient4,A$22)),0) -> 0 | B152: =IF(L2S>=C150,C150*B$38/L2S,0) -> 0 | C152: =CONCATENATE("S2 Layer ",C150," - right") -> S2 Layer 17 - right
C153: =(ROW()-ROW(C$99))/3 -> 18
A154: =IF(L2S>=C153,(IF(B154<B$11,A$12-(L2S-C153)/L2S*B$12/Gradient2,A$11)),0) -> 0 | B154: =IF(L2S>=C153,C153*B$37/L2S,0) -> 0 | C154: =CONCATENATE("S2 Layer ",C153," - left") -> S2 Layer 18 - left
A155: =IF(L2S>=C153,(IF(B155<B$22,A$23-(L2S-C153)/L2S*B$23/Gradient4,A$22)),0) -> 0 | B155: =IF(L2S>=C153,C153*B$38/L2S,0) -> 0 | C155: =CONCATENATE("S2 Layer ",C153," - right") -> S2 Layer 18 - right
C156: =(ROW()-ROW(C$99))/3 -> 19
A157: =IF(L2S>=C156,(IF(B157<B$11,A$12-(L2S-C156)/L2S*B$12/Gradient2,A$11)),0) -> 0 | B157: =IF(L2S>=C156,C156*B$37/L2S,0) -> 0 | C157: =CONCATENATE("S2 Layer ",C156," - left") -> S2 Layer 19 - left
A158: =IF(L2S>=C156,(IF(B158<B$22,A$23-(L2S-C156)/L2S*B$23/Gradient4,A$22)),0) -> 0 | B158: =IF(L2S>=C156,C156*B$38/L2S,0) -> 0 | C158: =CONCATENATE("S2 Layer ",C156," - right") -> S2 Layer 19 - right
C159: =(ROW()-ROW(C$99))/3 -> 20
A160: =IF(L2S>=C159,(IF(B160<B$11,A$12-(L2S-C159)/L2S*B$12/Gradient2,A$11)),0) -> 0 | B160: =IF(L2S>=C159,C159*B$37/L2S,0) -> 0 | C160: =CONCATENATE("S2 Layer ",C159," - left") -> S2 Layer 20 - left
A161: =IF(L2S>=C159,(IF(B161<B$22,A$23-(L2S-C159)/L2S*B$23/Gradient4,A$22)),0) -> 0 | B161: =IF(L2S>=C159,C159*B$38/L2S,0) -> 0 | C161: =CONCATENATE("S2 Layer ",C159," - right") -> S2 Layer 20 - right
C163: Start of Pass Data
